bitfinex/quotes_SOLUSD_20240725
["timestamp","ask_amount","ask_price","bid_price","bid_amount"]
[1721880081627,5.8503,170.93,170.84,45.0]
[1721880081828,49.2548,170.97,170.84,45.0]
[1721880081829,5.85,170.94,170.84,45.0]
[1721880082143,49.2548,170.97,170.85,1.17030024]
[1721880082339,49.2548,170.97,170.86,1.1702354]
[1721880082340,5.8494,170.96,170.86,1.1702354]
[1721880082843,5.8497,170.95,170.86,1.1702354]
[1721880083020,5.85,170.94,170.84,45.0]
[1721880083513,5.8495,170.96,170.84,45.0]
[1721880083717,5.8495,170.96,170.86,6.1457]
[1721880083917,5.8496,170.95,170.87,45.0]
[1721880086145,406.78,170.99,170.88,1.17021457]
[1721880086146,389.2,170.99,170.88,1.17021457]
[1721880086326,389.2,170.99,170.89,15.0785]
[1721880086524,389.2,170.99,170.9,45.0]
[1721880086525,395.0483,170.99,170.9,45.0]
[1721880086724,5.8483,170.99,170.9,45.0]
[1721880088046,5.8483,170.99,170.9,46.16995482]
[1721880089532,39.2978,171.01,170.9,45.0]
[1721880089734,33.45,171.01,170.9,45.0]
[1721880090344,254.1,171.04,170.9,45.0]
[1721880091149,17.58,171.03,170.89,15.0785]
[1721880091345,51.03,171.01,170.89,15.0785]
[1721880091551,53.63985901,171.01,170.89,15.0785]
[1721880092266,29.64,170.98,170.89,15.0785]
[1721880092828,5.8497,170.95,170.89,15.0785]
[1721880093339,5.85,170.94,170.89,15.0785]
[1721880093535,5.85,170.94,170.86,6.1457]
[1721880094050,47.22,170.98,170.86,6.1457]
[1721880094238,5.8503,170.93,170.86,6.1457]
[1721880094440,5.85,170.94,170.86,6.1457]
[1721880094845,5.8515,170.9,170.86,6.1457]
[1721880095046,5.8515,170.9,170.81,8.50069262]
[1721880095241,5.8517,170.89,170.81,8.50069262]
[1721880095447,32.2042,170.95,170.81,8.50069262]
[1721880095629,5.8524,170.87,170.81,8.50069262]
[1721880095831,5.8524,170.87,170.81,6.1641]
[1721880096254,5.8512,170.91,170.81,6.1641]
[1721880096729,5.8506,170.93,170.81,6.1641]
[1721880096930,35.95985901,170.94,170.82,45.0]
[1721880097138,5.851,170.92,170.82,45.0]
[1721880097353,5.8511,170.91,170.82,45.0]
[1721880097538,5.8513,170.9,170.82,45.0]
[1721880098758,5.851,170.91,170.82,45.0]
[1721880099549,5.8506,170.93,170.82,45.0]
[1721880099749,5.8506,170.93,170.83,20.0]
[1721880099950,5.8506,170.93,170.84,45.0]
[1721880100863,5.8506,170.93,170.84,46.17042799]
[1721880101666,5.8507,170.92,170.84,46.17042799]
[1721880102050,5.8507,170.92,170.84,45.0]
[1721880102757,8.46015901,170.94,170.84,46.17035379]
[1721880103160,5.8503,170.94,170.84,46.17035379]
[1721880104173,5.8503,170.94,170.84,45.0]
[1721880105350,389.2,170.96,170.86,6.3326]
[1721880105659,389.2,170.96,170.87,66.1701197]
[1721880106171,389.2,170.96,170.87,65.0]
[1721880106350,389.2,170.96,170.87,45.0]
[1721880106847,395.0494,170.96,170.88,1.17010436]
[1721880107445,389.2,170.96,170.86,6.3326]
[1721880107856,5.8503,170.93,170.86,6.3326]
[1721880108056,5.8507,170.92,170.86,6.3326]
[1721880108755,5.8503,170.93,170.86,6.3326]
[1721880109181,5.8509,170.92,170.86,6.3326]
[1721880110673,32.2058,170.94,170.82,6.3153]
[1721880110975,5.8515,170.9,170.82,6.3153]
[1721880111468,5.851,170.91,170.82,6.3153]
[1721880111968,2.60985901,170.93,170.83,45.0]
[1721880112173,8.46045901,170.93,170.83,45.0]
[1721880112676,2.60985901,170.93,170.83,45.0]
[1721880112974,389.2,170.96,170.83,46.17041676]
[1721880113170,395.0493,170.96,170.83,46.17041676]
[1721880113369,395.0493,170.96,170.84,20.0]
[1721880113672,395.0493,170.96,170.85,45.0]
[1721880114259,389.2,170.96,170.85,45.0]
[1721880114653,389.2,170.96,170.87,21.6575]
[1721880114853,389.2,170.96,170.88,45.0]
[1721880117776,389.2,170.96,170.87,21.6575]
[1721880117960,29.63,170.96,170.87,21.6575]
[1721880118777,5.85,170.94,170.87,21.6575]
[1721880119274,5.8503,170.93,170.87,21.6575]
[1721880120176,82.39,170.93,170.81,21.9665]
[1721880120483,5.8513,170.91,170.81,21.9665]
[1721880121683,35.4806,170.93,170.81,21.9665]
[1721880121872,35.4806,170.93,170.82,20.0]
[1721880122978,35.4806,170.93,170.83,45.0]
[1721880123155,5.8507,170.92,170.83,45.0]
[1721880124166,29.63,170.93,170.81,21.9665]
[1721880124167,5.8514,170.9,170.81,21.9665]
[1721880124363,5.8514,170.9,170.82,45.0]
[1721880124567,5.8514,170.9,170.81,21.9665]
[1721880124971,5.851,170.92,170.81,21.9665]
[1721880125178,5.8512,170.91,170.81,21.9665]
[1721880125365,10.55442109,170.92,170.81,21.9665]
[1721880125564,35.4806,170.93,170.82,20.0]
[1721880125769,35.4806,170.93,170.82,65.0]
[1721880126760,17.58,170.95,170.83,1.17042513]
[1721880126761,5.8499,170.95,170.83,1.17042513]
[1721880126961,10.55270897,170.95,170.84,6.5881]
[1721880127187,389.2,170.96,170.86,16.3724]
[1721880127482,389.2,170.96,170.87,51.5881]
[1721880127786,389.2,170.96,170.88,20.0]
[1721880127954,389.2,170.96,170.89,45.0]
[1721880129785,5.8483,170.99,170.89,45.0]
[1721880130298,10.55078045,171.0,170.9,1.17004289]
[1721880130884,10.55078045,171.0,170.89,45.0]
[1721880131282,444.28534242,171.02,170.89,45.0]
[1721880131283,10.54994852,170.99,170.89,45.0]
[1721880131703,10.54995093,170.98,170.89,45.0]
[1721880131893,16.39795093,171.0,170.89,45.0]
[1721880132099,10.54995093,171.0,170.89,45.0]
[1721880132325,27.42986856,171.0,170.89,45.0]
[1721880132477,5.8489,170.97,170.88,20.0]
[1721880132799,10.54995093,170.99,170.88,20.0]
[1721880132800,27.42986856,170.99,170.88,20.0]
[1721880132986,5.8496,170.96,170.88,20.0]
[1721880133307,29.63,170.97,170.87,6.5881]
[1721880133600,5.85,170.94,170.87,6.5881]
[1721880133799,5.8497,170.95,170.87,6.5881]
[1721880134189,16.39965093,170.95,170.87,6.5881]
[1721880134504,5.8497,170.95,170.87,6.5881]
[1721880134688,10.5526785,170.94,170.87,6.5881]
[1721880134888,5.8497,170.95,170.87,6.5881]
[1721880135291,16.40237205,170.95,170.87,6.5881]
[1721880135606,16.40227205,170.95,170.87,6.5881]
[1721880137402,5.8496,170.95,170.87,6.5881]
[1721880137582,10.55237935,170.94,170.87,6.5881]
[1721880138178,10.55291015,170.93,170.87,6.5881]
[1721880140792,10.55237935,170.94,170.87,6.5881]
[1721880140995,10.55237935,170.94,170.83,6.6251]
[1721880140996,5.851,170.92,170.83,6.6251]
[1721880141393,16.40388603,170.92,170.83,6.6251]
[1721880141597,10.55288603,170.92,170.83,6.6251]
[1721880141910,10.55237935,170.94,170.83,6.6251]
[1721880142106,10.55295939,170.93,170.83,6.6251]
[1721880142402,10.55295939,170.93,170.85,16.3166]
[1721880142577,10.55295939,170.93,170.86,45.0]
[1721880142777,10.55295939,170.94,170.86,45.0]
[1721880142978,10.55295939,170.94,170.85,16.3166]
[1721880143201,10.55295939,170.94,170.86,45.0]
[1721880143902,389.2,170.95,170.86,45.0]
[1721880144390,10.55258825,170.94,170.86,45.0]
[1721880144787,33.28754347,170.94,170.85,16.3166]
[1721880144985,5.85,170.94,170.85,16.3166]
[1721880145205,5.85,170.94,170.86,45.0]
[1721880145517,5.8503,170.93,170.86,45.0]
[1721880145688,5.8503,170.93,170.85,16.3166]
[1721880145890,10.55222776,170.95,170.85,16.3166]
[1721880145891,5.8507,170.92,170.85,16.3166]
[1721880146284,16.40292776,170.92,170.85,16.3166]
[1721880146485,5.8507,170.92,170.85,16.3166]
[1721880146708,5.851,170.91,170.83,6.6251]
[1721880147008,5.8515,170.9,170.83,6.6251]
[1721880147331,5.851,170.91,170.83,6.6251]
[1721880147891,10.553592,170.92,170.83,6.6251]
[1721880149714,10.553592,170.92,170.79,15.1732]
[1721880149715,5.852,170.89,170.79,21.2603]
[1721880150813,16.40597136,170.9,170.8,20.0]
[1721880151197,5.8518,170.89,170.8,20.0]
[1721880151805,5.852,170.88,170.8,20.0]
[1721880152215,5.8517,170.89,170.8,20.0]
[1721880153318,20.19889199,170.89,170.79,21.2603]
[1721880153516,5.8531,170.85,170.75,28.96797707]
[1721880153812,5.8531,170.85,170.75,22.8453]
[1721880154599,5.8534,170.84,170.75,22.8453]
[1721880155889,5.8544,170.82,170.75,6.2752]
[1721880156089,32.21803436,170.85,170.75,6.2752]
[1721880156309,38.07143436,170.85,170.75,6.2752]
[1721880158017,49.81803436,170.85,170.75,6.2752]
[1721880158318,55.67113436,170.85,170.75,6.2752]
[1721880158821,23.4534,170.84,170.75,6.2752]
[1721880158995,5.8541,170.82,170.75,6.2752]
[1721880159312,29.63,170.79,170.71,6.6284]
[1721880159514,5.8556,170.78,170.71,6.6284]
[1721880160394,29.63,170.76,170.67,22.4107]
[1721880162301,5.8568,170.74,170.67,22.4107]
[1721880162496,5.8568,170.74,170.63,22.6968]
[1721880163320,47.23,170.76,170.63,22.6968]
[1721880163321,53.0865,170.76,170.63,22.6968]
[1721880163526,5.8567,170.75,170.63,22.6968]
[1721880163701,5.8567,170.75,170.64,65.0]
[1721880163899,5.8567,170.75,170.63,22.6968]
[1721880163900,64.81,170.73,170.63,22.6968]
[1721880164107,5.8583,170.7,170.63,22.6968]
[1721880165422,55.34664293,170.72,170.63,22.6968]
[1721880165806,5.8582,170.7,170.63,22.6968]
[1721880166115,2.56664293,170.72,170.63,22.6968]
[1721880166319,35.4874,170.73,170.63,22.6968]
[1721880166510,29.63,170.73,170.63,22.6968]
[1721880167215,5.8579,170.71,170.63,22.6968]
[1721880167599,64.81,170.73,170.6,0.793157]
[1721880167600,35.18,170.64,170.6,0.793157]
[1721880167805,5.8613,170.61,170.6,0.793157]
[1721880168212,29.63,170.62,170.6,0.793157]
[1721880168836,35.491,170.62,170.6,0.793157]
[1721880169706,35.91836591,170.62,170.6,0.793157]
[1721880172707,16.4586,170.61,170.6,0.793157]
[1721880172920,42.11986591,170.62,170.6,0.793157]
[1721880172921,0.42736591,170.62,170.6,0.793157]
[1721880173526,6.28836591,170.62,170.6,0.793157]
[1721880174525,0.42736591,170.62,170.6,0.793157]
[1721880174915,70.6702,170.65,170.6,0.793157]
[1721880175437,64.81,170.65,170.6,0.793157]
[1721880175808,5.861,170.62,170.6,0.793157]
[1721880176208,64.81,170.65,170.6,0.793157]
[1721880177109,70.6702,170.65,170.6,0.793157]
[1721880177533,41.0402,170.65,170.6,0.793157]
[1721880178111,5.8603,170.64,170.6,0.793157]
[1721880179833,0.42736591,170.63,170.6,0.793157]
[1721880180218,5.8613,170.61,170.6,0.793157]
[1721880180421,35.18,170.59,170.43,2.98666695]
[1721880180620,406.8,170.6,170.43,0.793157]
[1721880180621,35.18,170.53,170.43,0.793157]
[1721880180922,35.18,170.55,170.43,0.793157]
[1721880181233,5.8631,170.56,170.43,0.793157]
[1721880181409,425.13076925,170.58,170.44,6.1214]
[1721880181611,389.2,170.58,170.45,16.27754129]
[1721880181837,389.2,170.58,170.47,6.1214]
[1721880182015,389.2,170.58,170.48,1.17270618]
[1721880182216,389.2,170.58,170.48,21.17270618]
[1721880182819,389.2,170.58,170.49,45.0]
[1721880183022,5.8613,170.62,170.5,20.0]
[1721880183226,5.8606,170.63,170.51,60.6223]
[1721880183424,283.73,170.64,170.52,20.0]
[1721880183736,283.73,170.64,170.51,15.6223]
[1721880183737,5.8624,170.58,170.51,15.6223]
[1721880183917,5.8626,170.58,170.51,15.6223]
[1721880184245,35.18,170.6,170.47,21.1978]
[1721880184425,5.8634,170.55,170.47,21.1978]
[1721880184738,29.63,170.58,170.47,21.1978]
[1721880184916,5.8635,170.55,170.47,21.1978]
[1721880185119,29.63,170.58,170.47,21.1978]
[1721880185547,5.863,170.57,170.47,21.1978]
[1721880185837,5.863,170.57,170.48,20.0]
[1721880186035,29.63,170.58,170.48,20.0]
[1721880186235,55.38985901,170.6,170.48,20.0]
[1721880186440,5.863,170.57,170.48,20.0]
[1721880187422,5.8631,170.56,170.48,20.0]
[1721880188735,14.6571,170.57,170.43,0.793157]
[1721880188920,17.6,170.54,170.43,0.793157]
[1721880189225,5.8651,170.5,170.43,0.793157]
[1721880189555,5.8647,170.51,170.43,0.793157]
[1721880189719,17.6,170.54,170.43,0.793157]
[1721880190043,47.60985901,170.53,170.43,0.793157]
[1721880190437,2.59889199,170.52,170.43,0.793157]
[1721880190745,5.8654,170.5,170.43,0.793157]
[1721880191842,5.8654,170.49,170.43,0.793157]
[1721880193623,5.8661,170.47,170.43,0.793157]
[1721880193827,33.9714,170.51,170.43,0.793157]
[1721880194022,5.8654,170.5,170.43,0.793157]
[1721880194223,5.8649,170.51,170.43,0.793157]
[1721880194539,5.8651,170.5,170.43,0.793157]
[1721880195247,397.66359199,170.52,170.43,0.793157]
[1721880195544,5.8647,170.51,170.43,0.793157]
[1721880195937,391.79889199,170.52,170.43,0.793157]
[1721880196136,5.8658,170.48,170.43,0.793157]
[1721880197022,76.15656138,170.52,170.43,0.793157]
[1721880197227,62.6,170.51,170.43,0.793157]
[1721880197441,5.8665,170.46,170.43,0.793157]
[1721880198247,5.8671,170.44,170.43,0.793157]
[1721880198432,8.44438503,170.44,170.43,0.793157]
[1721880198827,53.44438503,170.44,170.43,0.793157]
[1721880200045,8.44438503,170.44,170.43,0.793157]
[1721880203562,8.44438503,170.44,170.28,1.17398296]
[1721880203563,5.87,170.36,170.26,7.99564561]
[1721880203760,5.87,170.36,170.26,6.973857]
[1721880203964,5.8696,170.37,170.26,6.973857]
[1721880204257,5.8706,170.34,170.26,6.973857]
[1721880204461,34.1469,170.38,170.26,6.973857]
[1721880204653,2.56664293,170.37,170.26,6.973857]
[1721880205053,5.8699,170.36,170.26,6.973857]
[1721880205258,33.5,170.4,170.26,6.973857]
[1721880205259,16.5045,170.44,170.27,1.17439894]
[1721880205456,16.5045,170.44,170.28,22.4378]
[1721880205457,22.3719,170.44,170.28,22.4378]
[1721880205658,22.3719,170.44,170.29,21.17394328]
[1721880205962,16.5045,170.44,170.3,1.17394415]
[1721880206164,16.5045,170.44,170.3,45.0]
[1721880206462,16.5045,170.44,170.31,20.0]
[1721880206463,5.8682,170.41,170.31,20.0]
[1721880206836,0.42736591,170.41,170.28,22.4378]
[1721880207042,0.42736591,170.4,170.28,22.4378]
[1721880207463,6.29616591,170.4,170.28,22.4378]
[1721880207763,6.11065593,170.44,170.29,1.17412218]
[1721880207976,5.8669,170.45,170.3,1.1739293]
[1721880208265,0.42736591,170.44,170.3,1.1739736]
[1721880208651,0.42736591,170.44,170.3,46.1739736]
[1721880208652,6.29456591,170.44,170.3,46.1739736]
[1721880208856,0.42736591,170.44,170.31,20.0]
[1721880209055,0.42736591,170.44,170.32,46.17376945]
[1721880209361,0.42736591,170.44,170.33,20.0]
[1721880209541,0.42736591,170.44,170.35,6.0041]
[1721880210444,6.29446591,170.44,170.35,6.0041]
[1721880211146,5.868,170.42,170.35,6.0041]
[1721880211456,0.42736591,170.44,170.35,6.0041]
[1721880211679,18.02736591,170.44,170.35,6.0041]
[1721880211968,5.8686,170.4,170.35,6.0041]
[1721880212551,67.87556591,170.44,170.29,6.1587]
[1721880212757,17.6,170.42,170.29,6.1587]
[1721880212952,47.60985901,170.41,170.29,6.1587]
[1721880213151,5.8688,170.4,170.29,6.1587]
[1721880213559,2.60985901,170.41,170.29,6.1587]
[1721880213763,5.8692,170.38,170.29,6.1587]
[1721880215454,2.60985901,170.41,170.3,15.6995]
[1721880215655,5.868,170.42,170.31,65.0]
[1721880215863,58.8889211,170.46,170.31,65.0]
[1721880216163,5.8683,170.41,170.31,65.0]
[1721880216471,5.8675,170.43,170.31,65.0]
[1721880216858,2.60985901,170.45,170.32,7.65254946]
[1721880217057,8.47675901,170.45,170.33,65.0]
[1721880217579,2.60985901,170.45,170.33,65.0]
[1721880218289,5.868,170.42,170.32,6.4786]
[1721880218655,47.60985901,170.45,170.32,6.4786]
[1721880218980,5.8675,170.43,170.33,45.0]
[1721880219282,2.60985901,170.45,170.32,6.4786]
[1721880219283,5.8683,170.41,170.32,6.4786]
[1721880219667,55.38985901,170.45,170.32,6.4786]
[1721880219865,14.6705,170.41,170.32,6.4786]
[1721880220062,97.78,170.44,170.32,6.4786]
[1721880220262,55.38985901,170.43,170.32,6.4786]
[1721880220588,5.8689,170.39,170.32,6.4786]
[1721880220791,5.8694,170.38,170.32,6.4786]
[1721880221080,17.6,170.4,170.32,6.4786]
[1721880221393,17.6,170.4,170.26,0.793157]
[1721880221394,5.8706,170.34,170.28,6.1284]
[1721880221893,55.38985901,170.39,170.28,6.1284]
[1721880222181,5.8695,170.38,170.28,6.1284]
[1721880222480,61.24839199,170.38,170.28,6.1284]
[1721880222671,5.8697,170.37,170.28,6.1284]
[1721880223386,17.6,170.37,170.28,6.1284]
[1721880223560,5.8712,170.33,170.26,0.793157]
[1721880223881,5.8706,170.34,170.26,0.793157]
[1721880224256,5.8709,170.33,170.26,0.793157]
[1721880224679,17.6,170.37,170.26,0.793157]
[1721880224861,5.87,170.36,170.26,0.793157]
[1721880225264,2.59889199,170.38,170.26,20.793157]
[1721880225477,2.59889199,170.38,170.27,45.0]
[1721880225889,5.8698,170.37,170.27,45.0]
[1721880226190,5.8699,170.36,170.27,45.0]
[1721880226365,5.8699,170.36,170.26,20.793157]
[1721880226692,55.37889199,170.38,170.26,0.793157]
[1721880226984,5.8709,170.34,170.26,0.793157]
[1721880228081,65.18803436,170.37,170.26,0.793157]
[1721880228292,5.8706,170.34,170.26,0.793157]
[1721880228588,5.8711,170.33,170.26,0.793157]
[1721880228989,5.8716,170.31,170.26,0.793157]
[1721880229163,52.78,170.35,170.26,0.793157]
[1721880229489,5.8723,170.3,170.26,0.793157]
[1721880229909,23.4716,170.32,170.26,0.793157]
[1721880230192,2.57728503,170.34,170.26,0.793157]
[1721880230894,5.8717,170.31,170.26,0.793157]
[1721880231470,5.8712,170.33,170.26,0.793157]
[1721880231679,5.8719,170.31,170.26,0.793157]
[1721880232573,8.48105901,170.33,170.26,0.793157]
[1721880233577,2.60985901,170.33,170.26,0.793157]
[1721880234283,5.8699,170.37,170.26,0.793157]
[1721880234480,5.871,170.33,170.26,0.793157]
[1721880235196,20.20985901,170.36,170.26,0.793157]
[1721880235197,5.8713,170.32,170.26,0.793157]
[1721880235497,5.8706,170.35,170.26,0.793157]
[1721880235674,8.47975901,170.36,170.26,0.793157]
[1721880237907,2.60985901,170.36,170.26,0.793157]
[1721880238277,2.60985901,170.36,170.26,20.793157]
[1721880238480,2.60985901,170.36,170.27,45.0]
[1721880239105,5.8689,170.39,170.29,22.2465]
[1721880239399,6.10215763,170.43,170.29,22.2465]
[1721880239400,5.8693,170.38,170.29,22.2465]
[1721880239997,10.58770962,170.41,170.29,22.2465]
[1721880240309,17.6,170.42,170.29,22.2465]
[1721880240491,20.20985901,170.42,170.29,22.2465]
[1721880240690,5.8688,170.39,170.29,22.2465]
[1721880240885,5.8684,170.41,170.29,22.2465]
[1721880241090,2.60985901,170.42,170.3,66.17415936]
[1721880241313,2.60985901,170.42,170.3,65.0]
[1721880241314,5.8686,170.4,170.3,65.0]
[1721880241813,8.47785901,170.42,170.3,20.0]
[1721880242111,2.60985901,170.42,170.31,45.0]
[1721880242409,5.8682,170.41,170.31,45.0]
[1721880242594,2.60985901,170.42,170.31,45.0]
[1721880242794,254.1,170.44,170.33,6.5117]
[1721880243007,259.9674,170.44,170.34,45.0]
[1721880244112,259.9674,170.44,170.35,15.361]
[1721880245397,271.7,170.44,170.35,15.361]
[1721880245613,58.19505062,170.43,170.35,15.361]
[1721880245923,5.8681,170.42,170.35,15.361]
[1721880246216,10.58614805,170.42,170.35,15.361]
[1721880246402,5.8688,170.4,170.35,15.361]
[1721880246812,5.8682,170.41,170.35,15.361]
[1721880247114,16.45394805,170.42,170.35,15.361]
[1721880247489,10.58614805,170.42,170.35,15.361]
[1721880247809,2.60985901,170.43,170.35,15.361]
[1721880248201,16.93640578,170.46,170.36,1.1738551]
[1721880248401,10.58480832,170.45,170.36,20.0]
[1721880248703,5.8665,170.46,170.36,20.0]
[1721880248912,5.8664,170.47,170.36,20.0]
[1721880249219,22.80172612,170.47,170.37,45.0]
[1721880249397,16.45097639,170.47,170.37,45.0]
[1721880249593,10.58457639,170.46,170.37,45.0]
[1721880249813,16.45147639,170.45,170.36,20.0]
[1721880250019,5.8669,170.45,170.36,20.0]
[1721880250201,10.58457639,170.46,170.36,20.0]
[1721880250523,16.45127639,170.46,170.36,20.0]
[1721880250719,5.8668,170.45,170.36,20.0]
[1721880251215,33.38591414,170.47,170.36,20.0]
[1721880251415,16.45107639,170.46,170.36,20.0]
[1721880251997,5.8665,170.46,170.36,20.0]
[1721880252321,2.60985901,170.47,170.36,20.0]
[1721880252322,2.60985901,170.47,170.37,45.0]
[1721880252494,10.58430586,170.46,170.37,45.0]
[1721880252690,13.19416001,170.47,170.37,45.0]
[1721880253126,27.51781367,170.5,170.38,6.3529]
[1721880253305,5.8675,170.43,170.38,6.3529]
[1721880253504,5.8671,170.45,170.38,6.3529]
[1721880253697,5.8671,170.44,170.38,6.3529]
[1721880253895,45.12040909,170.46,170.35,15.361]
[1721880254094,5.8682,170.41,170.35,15.361]
[1721880255421,10.58609728,170.42,170.35,15.361]
[1721880255619,5.8672,170.44,170.35,15.361]
[1721880256000,16.45243957,170.44,170.35,15.361]
[1721880256312,8.47665901,170.45,170.35,15.361]
[1721880256901,10.58506554,170.44,170.35,15.361]
[1721880257101,8.47665901,170.45,170.35,15.361]
[1721880257529,22.80196149,170.47,170.35,15.361]
[1721880257714,16.45122593,170.46,170.36,45.0]
[1721880258023,10.58472593,170.45,170.36,45.0]
[1721880258227,10.58472593,170.45,170.35,15.361]
[1721880258410,5.8672,170.44,170.35,15.361]
[1721880258720,5.8668,170.45,170.35,15.361]
[1721880259944,2.60985901,170.45,170.35,15.361]
[1721880260108,5.8671,170.44,170.35,15.361]
[1721880260511,5.8675,170.43,170.35,15.361]
[1721880260718,2.60985901,170.45,170.35,15.361]
[1721880261028,5.8672,170.44,170.35,15.361]
[1721880261837,2.60985901,170.45,170.35,15.361]
[1721880262402,2.60985901,170.45,170.36,21.17375082]
[1721880262735,13.19458676,170.45,170.36,20.0]
[1721880262918,2.60985901,170.45,170.36,20.0]
[1721880263812,8.47675901,170.45,170.36,20.0]
[1721880264423,2.60985901,170.45,170.36,21.17378211]
[1721880264613,10.58459797,170.47,170.36,21.17378211]
[1721880264817,10.58459797,170.47,170.37,45.0]
[1721880265015,10.58459797,170.47,170.38,1.17366265]
[1721880265239,16.45069797,170.47,170.38,1.17366265]
[1721880265942,10.58459797,170.47,170.38,1.17366265]
[1721880266244,10.58459797,170.47,170.39,6.0463]
[1721880266537,10.58459797,170.47,170.4,45.0]
[1721880266721,5.8655,170.49,170.4,45.0]
[1721880267232,16.44873337,170.49,170.4,45.0]
[1721880267456,5.8665,170.46,170.39,6.0463]
[1721880268832,16.45013019,170.48,170.39,6.0463]
[1721880269526,5.8662,170.47,170.39,6.0463]
[1721880271713,5.8665,170.46,170.39,6.0463]
[1721880275615,10.58410958,170.49,170.4,15.4959]
[1721880275948,2.60985901,170.5,170.4,15.4959]
[1721880275949,10.58410958,170.48,170.4,15.4959]
[1721880276120,13.19396859,170.5,170.4,15.4959]
[1721880276513,30.12735385,170.5,170.4,15.4959]
[1721880276720,5.8658,170.48,170.4,15.4959]
[1721880278641,5.8674,170.44,170.4,15.4959]
[1721880278842,29.8,170.47,170.4,15.4959]
[1721880279051,5.8671,170.44,170.39,6.0463]
[1721880279220,28.18410958,170.46,170.36,16.4974]
[1721880279426,5.8679,170.42,170.36,16.4974]
[1721880279730,57.98410958,170.44,170.36,16.4974]
[1721880279922,10.58410958,170.43,170.36,16.4974]
[1721880280325,5.8678,170.42,170.36,16.4974]
[1721880281250,16.45358721,170.42,170.36,16.4974]
[1721880281453,10.58578721,170.41,170.36,16.4974]
[1721880281751,10.58578721,170.4,170.36,16.4974]
[1721880282046,5.8678,170.42,170.36,16.4974]
[1721880282258,16.4535866,170.42,170.36,16.4974]
[1721880282455,5.8678,170.42,170.36,16.4974]
[1721880282642,16.4535866,170.42,170.36,16.4974]
[1721880282859,10.5857866,170.42,170.36,16.4974]
[1721880283234,2.58803436,170.44,170.36,16.4974]
[1721880283630,32.38803436,170.44,170.36,16.4974]
[1721880283837,27.52172992,170.43,170.36,16.4974]
[1721880284037,10.58528074,170.42,170.36,16.4974]
[1721880284238,13.1733151,170.44,170.36,16.4974]
[1721880284448,10.58528074,170.43,170.36,16.4974]
[1721880284948,16.45278074,170.43,170.36,16.4974]
[1721880285246,10.58528074,170.43,170.36,16.4974]
[1721880285437,13.1733151,170.44,170.36,16.4974]
[1721880285848,19.0404151,170.44,170.36,16.4974]
[1721880286049,10.58528074,170.43,170.36,16.4974]
[1721880286565,8.45513436,170.44,170.36,16.4974]
[1721880286736,10.585782,170.42,170.36,16.4974]
[1721880287251,10.585782,170.41,170.36,16.4974]
[1721880287432,2.58803436,170.44,170.36,16.4974]
[1721880287433,13.17381636,170.44,170.36,16.4974]
[1721880287639,19.04111636,170.44,170.36,16.4974]
[1721880287957,10.585782,170.43,170.36,16.4974]
[1721880289364,10.585782,170.43,170.36,17.67114659]
[1721880289661,17.6,170.46,170.36,16.4974]
[1721880289840,84.38330095,170.46,170.36,16.4974]
[1721880290042,5.8685,170.4,170.36,16.4974]
[1721880290447,5.8692,170.38,170.36,16.4974]
[1721880290673,31.60553964,170.43,170.36,16.4974]
[1721880290674,5.8688,170.4,170.36,16.4974]
[1721880291048,93.16546227,170.41,170.32,15.222]
[1721880291357,5.8698,170.37,170.31,6.394]